bitfinex-derivatives/quotes_ETHF0:USTF0_20240920
["timestamp","ask_amount","ask_price","bid_price","bid_amount"]
[1726791818165,0.4225,2460.1,2459.7,3.2078]
[1726791818367,0.82889,2460.1,2459.7,3.61424]
[1726791818869,0.4225,2460.1,2459.8,0.40643]
[1726791819458,0.82889,2460.1,2459.7,3.61424]
[1726791819866,0.4225,2460.1,2459.8,0.40642]
[1726791820169,0.82888,2460.1,2459.8,0.40642]
[1726791820865,0.82888,2460.1,2459.8,0.81742]
[1726791821066,0.4225,2460.1,2459.8,0.81742]
[1726791821863,0.82888,2460.1,2459.8,0.81742]
[1726791823163,0.82888,2460.1,2459.9,0.40641]
[1726791823371,0.82888,2460.1,2459.8,0.81742]
[1726791823871,0.4225,2460.1,2459.8,0.81742]
[1726791824069,0.82889,2460.1,2459.8,0.81742]
[1726791824267,0.82889,2460.1,2459.9,0.40641]
[1726791824665,0.4225,2460.1,2459.9,0.40641]
[1726791826572,0.82889,2460.1,2459.9,0.40641]
[1726791827471,0.4225,2460.1,2459.8,0.8188]
[1726791827667,0.4225,2460.1,2459.9,0.4064]
[1726791828371,0.4225,2460.1,2460.0,0.4064]
[1726791828564,0.4225,2460.1,2459.9,0.4064]
[1726791829068,0.82888,2460.1,2459.9,0.4064]
[1726791829271,0.4225,2460.1,2459.8,0.8188]
[1726791829770,0.4225,2460.1,2459.9,0.4064]
[1726791831671,0.4225,2460.1,2460.0,0.4064]
[1726791834274,0.82888,2460.1,2459.9,0.4064]
[1726791834473,0.4165,2460.0,2459.9,0.4064]
[1726791837280,0.40637,2460.2,2460.0,0.40639]
[1726791837470,0.40637,2460.2,2460.0,3.61419]
[1726791837965,0.40637,2460.2,2460.0,0.40639]
[1726791840175,0.40637,2460.2,2459.8,2.6801]
[1726791841271,0.40637,2460.2,2459.9,0.4064]
[1726791841466,0.40638,2460.1,2459.9,0.4064]
[1726791841671,0.40642,2459.9,2459.7,3.61424]
[1726791841878,1.63193,2459.8,2459.6,0.40645]
[1726791842178,1.2255,2459.8,2459.6,0.40645]
[1726791842880,1.2255,2459.8,2459.4,5.9033]
[1726791843079,1.2255,2459.8,2459.7,0.40645]
[1726791843277,0.8119,2459.8,2459.7,0.40645]
[1726791843481,0.8119,2459.8,2459.4,4.0399]
[1726791843681,0.40646,2459.6,2459.4,4.03829]
[1726791843982,0.3942,2459.5,2459.4,3.6318]
[1726791844279,0.80068,2459.5,2459.4,3.2078]
[1726791844783,0.3942,2459.5,2459.2,0.40652]
[1726791845083,0.3884,2459.4,2459.1,3.2078]
[1726791845281,0.40653,2459.2,2459.1,3.2078]
[1726791845473,1.8709,2459.3,2459.1,3.2078]
[1726791845676,0.4109,2459.3,2459.1,3.2078]
[1726791846482,0.4109,2459.3,2459.1,4.6678]
[1726791847283,0.81741,2459.3,2459.1,4.6678]
[1726791850978,0.3884,2459.4,2459.2,1.46]
[1726791851184,0.4068,2459.5,2459.3,0.40651]
[1726791851490,0.4068,2459.5,2459.4,1.46]
[1726791851788,0.4068,2459.5,2459.4,0.4122]
[1726791852379,0.4068,2459.5,2459.4,0.8187]
[1726791852687,0.4068,2459.5,2459.4,3.62]
[1726791855889,0.4068,2459.5,2459.4,4.0265]
[1726791856079,0.82656,2459.7,2459.5,0.40648]
[1726791856391,0.82655,2459.7,2459.5,0.40648]
[1726791856588,0.82655,2459.7,2459.4,5.48649]
[1726791856787,3.45628643,2459.8,2459.5,0.40647]
[1726791857093,2.64264643,2460.0,2459.7,4.6678]
[1726791857283,0.40641,2460.0,2459.8,0.82943]
[1726791857984,0.40641,2460.0,2459.8,0.423]
[1726791858386,4.50903643,2460.1,2459.8,0.423]
[1726791858683,0.4064,2460.0,2459.8,0.8417]
[1726791860484,1.86641,2460.0,2459.8,0.423]
[1726791860686,0.40641,2459.9,2459.8,0.423]
[1726791861082,0.40643,2459.8,2459.7,3.2078]
[1726791861293,0.3978,2459.8,2459.6,0.40646]
[1726791861493,0.3978,2459.8,2459.5,1.46]
[1726791861693,0.3978,2459.8,2459.6,0.40645]
[1726791862090,0.3978,2459.8,2459.7,0.40645]
[1726791862396,0.3978,2459.8,2459.6,0.40645]
[1726791862894,0.8155,2459.7,2459.6,0.40645]
[1726791864293,0.4051,2459.7,2459.6,0.40645]
[1726791866503,1.0162,2459.6,2459.1,3.2078]
[1726791866811,0.40653,2459.3,2459.1,3.2078]
[1726791867096,4.5051848,2459.5,2459.1,3.2078]
[1726791867300,0.7889,2459.2,2459.1,3.61435]
[1726791867601,0.7889,2459.2,2459.1,3.2078]
[1726791867804,0.7889,2459.2,2459.1,3.61435]
[1726791869597,0.40651,2459.3,2459.1,5.07435]
[1726791869900,1.2184,2459.5,2459.1,5.0867]
[1726791870094,1.2184,2459.5,2459.1,5.49323]
[1726791870095,0.4065,2459.4,2459.1,5.49323]
[1726791870605,0.4065,2459.4,2459.2,0.40652]
[1726791871796,0.4065,2459.4,2459.2,0.82272]
[1726791872500,1.62489,2459.5,2459.2,2.28272]
[1726791872811,0.4065,2459.4,2459.2,2.28272]
[1726791873701,0.4065,2459.4,2459.2,0.4162]
[1726791873904,0.4065,2459.4,2459.2,0.82273]
[1726791874499,1.62489,2459.5,2459.3,0.40651]
[1726791874702,1.62489,2459.5,2459.2,0.82272]
[1726791874900,1.62489,2459.5,2459.2,0.4162]
[1726791875405,0.4065,2459.4,2459.2,0.82272]
[1726791876302,0.40651,2459.3,2459.2,0.4162]
[1726791876604,0.40651,2459.3,2459.1,3.61434]
[1726791876605,0.40652,2459.3,2459.1,3.61434]
[1726791877208,0.40652,2459.3,2459.1,3.2078]
[1726791877507,0.40653,2459.2,2459.1,3.2078]
[1726791882603,4.0983848,2459.3,2459.1,3.2078]
[1726791882813,2.6383848,2459.4,2459.2,1.86653]
[1726791883008,1.2184,2459.5,2459.3,0.4019]
[1726791883009,4.2632748,2459.5,2459.3,0.4019]
[1726791883511,5.7232748,2459.5,2459.3,0.4019]
[1726791883703,2.6383848,2459.4,2459.3,0.4019]
[1726791883905,3.0448848,2459.4,2459.3,0.4019]
[1726791885105,2.6383848,2459.4,2459.3,0.4019]
[1726791885306,3.0448848,2459.4,2459.3,0.4019]
[1726791889513,2.6383848,2459.4,2459.3,0.80841]
[1726791889718,3.8567848,2459.5,2459.3,0.80841]
[1726791889906,3.8567848,2459.5,2459.4,0.4065]
[1726791890115,1.2184,2459.5,2459.4,0.4065]
[1726791890804,1.2184,2459.5,2459.3,0.8084]
[1726791891221,3.8567848,2459.5,2459.3,0.8084]
[1726791892021,3.8567848,2459.5,2459.4,0.4065]
[1726791893210,3.8567848,2459.5,2459.3,0.8084]
[1726791893211,4.2632648,2459.5,2459.3,0.8084]
[1726791898419,0.4065,2459.4,2459.3,0.4019]
[1726791902535,3.0448848,2459.4,2459.2,0.40652]
[1726791902732,0.4065,2459.4,2459.2,0.40652]
[1726791903031,0.40651,2459.3,2459.1,4.41123]
[1726791903623,2.6383848,2459.4,2459.1,3.5942]
[1726791903825,0.40653,2459.2,2459.1,3.5942]
[1726791904030,1.86653,2459.2,2459.1,3.2078]
[1726791904238,4.5049148,2459.2,2459.1,3.2078]
[1726791904533,0.40655,2459.1,2458.9,0.40657]
[1726791904734,2.63987025,2459.0,2458.9,0.40657]
[1726791905231,4.25362025,2459.1,2458.9,0.40657]
[1726791905437,2.63987025,2459.0,2458.9,0.40657]
[1726791905733,4.25362025,2459.1,2458.9,0.40657]
[1726791907439,2.63987025,2459.0,2458.9,0.40657]
[1726791907937,4.25362025,2459.1,2458.9,0.40657]
[1726791908139,2.63987025,2459.0,2458.9,0.40657]
[1726791909534,1.2072,2459.1,2458.9,0.40657]
[1726791909535,3.84707025,2459.1,2458.9,0.40657]
[1726791910232,4.25362025,2459.1,2458.9,0.40657]
[1726791911032,2.63987025,2459.0,2458.9,0.40657]
[1726791912739,1.61375,2459.1,2458.9,0.40657]
[1726791913131,2.64270293,2459.0,2458.9,0.40657]
[1726791914432,2.6426312,2459.0,2458.9,0.40657]
[1726791918543,2.6426312,2459.0,2458.9,3.61437]
[1726791919133,3.4558312,2459.1,2459.0,0.40656]
[1726791922443,0.8132,2459.1,2459.0,0.40656]
[1726791923447,5.3223812,2459.1,2458.8,0.4004]
[1726791923636,5.3223812,2459.1,2458.9,0.40658]
[1726791923637,2.6426312,2459.0,2458.9,0.40658]
[1726791923839,2.6426312,2459.0,2458.8,0.80699]
[1726791924347,1.46,2458.9,2458.6,3.2078]
[1726791924542,2.64171539,2458.7,2458.6,5.07443]
[1726791924748,2.64171539,2458.8,2458.6,4.6678]
[1726791925052,2.64171539,2458.8,2458.6,3.2078]
[1726791925053,2.64171539,2458.7,2458.6,3.2078]
[1726791925250,4.92491539,2458.7,2458.6,3.2078]
[1726791926251,2.2832,2458.7,2458.6,3.2078]
[1726791926651,4.92435237,2458.7,2458.6,3.2078]
[1726791927350,4.92435237,2458.7,2458.4,2.27065]
[1726791927543,3.04405237,2458.7,2458.6,1.86663]
[1726791927746,8.33087732,2459.3,2458.6,1.86663]
[1726791927747,0.40654,2459.2,2458.8,0.40659]
[1726791928052,0.40654,2459.2,2459.0,3.2078]
[1726791928257,0.3914,2459.3,2459.0,3.2078]
[1726791928457,0.3914,2459.3,2459.1,1.86654]
[1726791928658,0.3914,2459.3,2459.1,1.46]
[1726791928849,0.3914,2459.3,2459.1,1.86654]
[1726791930253,0.3914,2459.3,2459.1,0.40654]
[1726791930254,0.79791,2459.3,2459.1,0.40654]
[1726791930558,0.79791,2459.3,2459.0,5.07435]
[1726791932363,0.3914,2459.3,2459.1,0.40654]
[1726791933052,0.79792,2459.3,2459.1,0.40654]
[1726791933252,0.79792,2459.3,2459.0,5.07435]
[1726791933461,0.3914,2459.3,2459.1,0.40654]
[1726791933754,0.79792,2459.3,2459.1,0.40654]
[1726791933956,0.79792,2459.3,2459.1,0.80494]
[1726791935060,0.79792,2459.3,2459.0,5.07435]
[1726791935260,0.79792,2459.3,2459.1,0.40654]
[1726791936254,0.3914,2459.3,2459.0,3.2078]
[1726791936459,1.46,2459.2,2459.0,0.40656]
[1726791936764,0.3962,2459.1,2459.0,0.40656]
[1726791937262,0.3962,2459.1,2459.0,3.61436]
[1726791938462,0.3962,2459.1,2459.0,7.68076]
[1726791938660,0.3914,2459.3,2459.2,0.40653]
[1726791938854,0.3914,2459.3,2459.2,1.86653]
[1726791939253,0.3914,2459.3,2459.2,0.40653]
[1726791939449,0.3914,2459.3,2459.1,0.401]
[1726791939450,0.79791,2459.3,2459.1,0.80754]
[1726791939756,0.3914,2459.3,2459.2,0.40653]
[1726791947274,0.3914,2459.3,2459.2,1.86653]
[1726791947473,4.63152009,2459.7,2459.2,5.5264]
[1726791947773,4.63152009,2459.7,2459.3,4.6678]
[1726791947774,2.64322772,2459.5,2459.3,4.6678]
[1726791947972,3.86392772,2459.6,2459.5,0.40648]
[1726791948171,4.27038772,2459.6,2459.4,0.82899]
[1726791948475,4.27038772,2459.6,2459.5,0.40648]
[1726791948476,3.86399048,2459.6,2459.5,0.40648]
[1726791949170,2.64329048,2459.7,2459.6,0.40646]
[1726791949376,3.86399048,2459.9,2459.6,8.7334]
[1726791949575,1.2207,2459.9,2459.7,0.40643]
[1726791949768,3.86399048,2459.9,2459.8,1.86643]
[1726791949964,1.46,2460.3,2459.8,1.46]
[1726791949965,2.64329048,2460.1,2459.8,1.46]
[1726791950172,2.64329048,2460.1,2460.0,1.8664]
[1726791950373,3.47879048,2460.2,2460.0,1.8664]
[1726791950572,3.47879048,2460.2,2460.1,0.40638]
[1726791950772,0.8355,2460.2,2460.1,0.40638]
[1726791951463,0.8355,2460.2,2460.0,1.86639]
[1726791951869,1.46,2460.1,2459.9,3.61421]
[1726791952070,0.8355,2460.2,2459.9,3.61421]
[1726791952874,0.8355,2460.2,2460.0,0.4064]
[1726791954567,0.8355,2460.2,2459.9,3.61421]
[1726791954766,0.8355,2460.2,2460.0,0.4064]
[1726791959376,0.40639,2460.1,2459.8,0.40642]
[1726791959566,0.40639,2460.1,2459.7,0.40644]
[1726791959770,0.40639,2460.1,2459.8,0.40643]
[1726791959969,0.40639,2460.1,2459.5,6.9372]
[1726791959970,3.17,2460.1,2459.5,3.2078]
[1726791960178,3.17,2459.9,2459.6,0.40646]
[1726791960369,0.3961,2459.8,2459.6,0.40646]
[1726791960577,0.3877,2459.7,2459.6,0.40646]
[1726791961174,0.3877,2459.7,2459.6,0.80446]
[1726791961373,0.3877,2459.7,2459.6,4.87006]
[1726791961680,5.81329048,2460.3,2459.6,7.6336]
[1726791961873,0.8103,2459.9,2459.8,3.61423]
[1726791962381,0.8103,2459.9,2459.8,3.2078]
[1726791964385,0.8103,2459.9,2459.7,3.61424]
[1726791964977,0.8103,2459.9,2459.8,0.40643]
[1726791967683,0.8103,2459.9,2459.7,3.61424]
[1726791968377,0.8103,2459.9,2459.7,3.2078]
[1726791968684,0.8103,2459.9,2459.2,3.17]
[1726791968685,0.40645,2459.7,2459.4,0.4065]
[1726791968884,0.79357,2459.6,2459.3,3.61431]
[1726791969181,0.40649,2459.5,2459.2,0.40652]
[1726791969402,0.385,2459.4,2459.3,0.40651]
[1726791969701,0.385,2459.4,2459.2,0.40652]
[1726791970491,0.7915,2459.4,2459.2,0.40652]
[1726791970798,0.385,2459.4,2459.2,0.40652]
[1726791970995,0.385,2459.4,2459.1,3.2078]
[1726791971193,3.17,2459.3,2458.8,3.2078]
[1726791971400,0.40654,2459.2,2458.9,0.40657]
[1726791971592,0.3969,2459.1,2459.0,0.40655]
[1726791972093,0.3969,2459.1,2458.9,0.40657]
[1726791972399,0.4002,2459.0,2458.8,3.61439]
[1726791972605,0.4002,2459.0,2458.8,3.2078]
[1726791972803,0.4169,2458.9,2458.8,3.6144]
[1726791973105,0.4169,2458.9,2458.8,3.2078]
[1726791973592,0.4169,2458.9,2458.8,3.6144]
[1726791973995,0.4169,2458.9,2458.8,6.7844]
[1726791979702,0.4169,2458.9,2458.8,3.6144]
[1726791979893,0.4169,2458.9,2458.8,6.7844]
[1726791981201,0.3969,2459.1,2459.0,0.40656]
[1726791981400,0.4222,2459.3,2459.2,0.40653]
[1726791981594,0.4222,2459.3,2459.2,6.78433]
[1726791982292,0.7788,2459.5,2459.4,0.4065]
[1726791982493,9.79418567,2460.1,2459.4,3.17]
[1726791982494,0.4222,2459.8,2459.4,3.17]
[1726791982690,2.64329048,2460.1,2459.9,0.40641]
[1726791982897,0.4222,2460.1,2459.9,0.40641]
[1726791983491,0.4222,2460.1,2459.8,3.17]
[1726791983696,0.4222,2460.1,2459.9,0.40641]
[1726791984094,0.4222,2460.1,2459.8,3.57642]
[1726791984400,0.4222,2460.1,2459.9,0.40641]
[1726791984595,0.4222,2460.1,2459.8,3.57642]
[1726791986999,0.4222,2460.1,2459.8,0.40642]
[1726791988204,0.4222,2460.1,2459.9,0.40641]
[1726791992497,0.82859,2460.1,2459.8,0.40643]
[1726791994516,0.4222,2460.1,2459.9,0.40641]
[1726791994715,0.82859,2460.1,2459.8,0.40642]
[1726791995014,0.82859,2460.1,2459.9,0.40641]
[1726791995820,0.40641,2460.0,2459.7,6.3778]
[1726791996113,0.4064,2460.0,2459.8,0.40643]
[1726791996316,0.3932,2459.9,2459.8,0.40643]
[1726791996615,0.79961,2459.9,2459.7,6.3778]
[1726791996819,0.3932,2459.9,2459.7,6.78424]
[1726791997012,0.3926,2459.8,2459.7,6.78424]
[1726791997613,0.3926,2459.8,2459.5,0.40647]
[1726791997822,0.79904,2459.8,2459.5,0.40647]
[1726791998122,0.79904,2459.8,2459.4,3.2078]
[1726791998308,0.79904,2459.8,2459.5,0.40647]
[1726791998507,0.79904,2459.8,2459.4,3.2078]
[1726791998508,0.3926,2459.8,2459.7,0.40645]
[1726791999610,0.3926,2459.8,2459.6,0.40645]
[1726792000113,0.79903,2459.8,2459.6,0.40645]
[1726792000311,0.3926,2459.8,2459.4,6.78429]
[1726792000510,0.3926,2459.8,2459.4,3.2078]
[1726792000715,0.40648,2459.5,2459.3,0.40651]
[1726792001016,0.8313,2459.4,2459.3,0.40651]
[1726792001319,0.8313,2459.4,2459.3,3.61431]
[1726792005913,0.8313,2459.4,2459.3,5.07431]
[1726792006808,0.40646,2459.7,2459.5,0.40647]
[1726792007016,0.405,2459.6,2459.5,1.86647]
[1726792007218,0.405,2459.6,2459.5,1.46]
[1726792007609,0.405,2459.6,2459.5,1.86648]
[1726792009116,6.76429048,2460.0,2459.5,11.5256]
[1726792009320,1.2317,2460.1,2459.9,1.86641]
[1726792009522,1.2317,2460.1,2460.0,0.4064]
[1726792009913,1.2317,2460.1,2459.9,1.8664]
[1726792010218,0.8128,2460.1,2460.0,0.4064]
[1726792010414,0.8128,2460.1,2460.0,3.6142]
[1726792010721,0.4201,2460.1,2460.0,4.016]
[1726792011917,0.4201,2460.1,2460.0,3.2078]
[1726792017016,0.40642,2459.9,2459.4,7.4058]
[1726792017218,0.40641,2459.9,2459.4,3.61429]
[1726792017423,0.4146,2459.8,2459.4,3.61429]
[1726792018228,0.4146,2459.8,2459.5,0.40648]
[1726792018521,3.04358166,2459.9,2459.5,0.40647]
[1726792018522,3.04359166,2459.9,2459.5,0.40647]
[1726792018728,0.4146,2459.8,2459.5,0.40647]
[1726792019320,0.82103,2459.8,2459.4,3.61429]
[1726792020030,0.82104,2459.8,2459.4,3.6143]
[1726792020622,0.40645,2459.7,2459.4,3.6143]
[1726792020932,0.4132,2459.6,2459.4,3.6143]
[1726792021230,0.8269,2459.6,2459.4,3.6143]
[1726792021927,0.8269,2459.6,2459.5,0.40648]
[1726792022134,3.05087166,2459.9,2459.5,4.0656]
[1726792022431,3.2078,2460.1,2459.5,4.0656]
[1726792022432,0.4132,2460.0,2459.8,0.40642]
[1726792022736,0.4132,2460.0,2459.9,0.40641]
[1726792022931,0.4132,2460.0,2459.8,0.82472]
[1726792023836,0.4132,2460.0,2459.8,0.4183]
[1726792024023,0.4132,2460.0,2459.9,0.40641]
[1726792024435,0.4132,2460.0,2459.8,0.82472]
[1726792025433,0.4132,2460.0,2459.8,0.4183]
[1726792025633,3.04359166,2459.9,2459.7,3.2078]
[1726792026435,2.63717166,2459.8,2459.7,3.2078]
[1726792026836,3.04360166,2459.8,2459.7,3.2078]
[1726792027032,2.63717166,2459.8,2459.7,3.2078]
[1726792027426,0.81961,2460.0,2459.7,3.2078]
[1726792027427,3.99113009,2460.0,2459.7,3.2078]
[1726792027633,2.64284048,2459.8,2459.7,3.61424]
[1726792028032,0.4132,2460.0,2459.7,3.61424]
[1726792028033,2.64284048,2459.9,2459.7,3.61424]
[1726792029332,2.64284048,2459.9,2459.7,3.2078]
[1726792029634,0.8196,2460.0,2459.7,3.61425]
[1726792029635,2.64284048,2459.8,2459.7,3.61425]
[1726792031532,2.64284048,2459.8,2459.7,0.40645]
[1726792040136,2.64284048,2459.8,2459.6,3.2078]
[1726792040137,3.04927048,2459.8,2459.6,3.61426]
[1726792040342,0.3835,2459.7,2459.6,3.61426]
[1726792043043,0.3835,2459.7,2459.6,3.2078]
[1726792043239,3.84569048,2459.7,2459.6,3.2078]
[1726792043547,3.43924048,2459.7,2459.6,3.2078]
[1726792043846,3.84569048,2459.7,2459.6,3.2078]
[1726792044142,3.43924048,2459.7,2459.6,3.2078]
[1726792044534,3.84569048,2459.7,2459.6,3.2078]
[1726792044743,3.43924048,2459.7,2459.6,3.2078]
[1726792046746,3.84569048,2459.7,2459.6,3.2078]
[1726792046948,1.20285,2459.7,2459.6,3.2078]
[1726792047447,3.84578401,2459.7,2459.6,3.2078]
[1726792047648,1.20285,2459.7,2459.6,3.2078]
[1726792048344,3.84577666,2459.7,2459.6,3.2078]
[1726792048550,3.43932666,2459.7,2459.6,3.2078]
[1726792049946,0.40647,2459.6,2459.3,0.40651]
[1726792050150,2.64284904,2459.5,2459.3,0.40651]
[1726792050448,2.64284904,2459.4,2459.2,3.61431]
[1726792050748,3.06754904,2459.3,2459.2,3.2078]
[1726792050949,0.8408,2459.3,2459.2,3.61433]
[1726792051946,3.48364904,2459.3,2459.2,3.2078]
[1726792052142,3.48364904,2459.3,2459.1,0.40654]
[1726792052343,0.4184,2459.2,2459.1,0.40654]
[1726792053341,0.4184,2459.2,2458.9,6.7768]
[1726792053549,3.06124904,2459.2,2458.9,3.2078]
[1726792053751,2.64284904,2459.1,2458.9,3.2078]
[1726792054740,3.46777904,2459.2,2458.9,3.2078]
[1726792056144,3.06124904,2459.2,2458.9,3.61437]
[1726792056953,0.82494,2459.2,2458.9,3.2078]
[1726792057255,3.46778904,2459.2,2458.9,3.61438]
[1726792058049,3.46778904,2459.2,2458.9,3.2078]
[1726792058354,0.82494,2459.2,2458.9,3.2078]
[1726792058747,3.46778904,2459.2,2458.9,3.61438]
[1726792061860,3.06124904,2459.2,2459.1,0.40655]
[1726792062054,0.4184,2459.2,2459.1,1.86655]
[1726792071862,0.4184,2459.2,2459.0,1.46]
[1726792072058,0.4184,2459.2,2459.1,0.40655]
[1726792074752,0.4184,2459.2,2459.1,2.25025]
[1726792078871,0.4184,2459.2,2459.1,1.86655]
[1726792079169,0.4184,2459.2,2459.1,0.40655]
[1726792082864,0.4184,2459.2,2459.0,1.46]
[1726792083167,0.4184,2459.2,2459.1,0.40655]
[1726792086066,0.4184,2459.2,2459.0,1.86655]
[1726792086367,3.06124904,2459.2,2459.0,1.86655]
[1726792087870,3.06124904,2459.2,2459.1,0.40655]
[1726792088387,3.06124904,2459.2,2459.0,1.86655]
[1726792090071,3.06124904,2459.2,2459.1,0.40655]
[1726792093167,0.4184,2459.2,2459.1,0.40655]
[1726792094973,0.82493,2459.2,2458.9,3.61437]
[1726792095174,4.51152685,2459.0,2458.9,3.2078]
[1726792095368,0.40655,2459.1,2458.9,3.2078]
[1726792095570,3.57807009,2459.1,2458.9,3.2078]
[1726792095775,0.4036,2459.0,2458.9,3.2078]
[1726792096875,0.4036,2459.0,2458.9,5.07438]
[1726792103169,0.4036,2459.0,2458.9,3.2078]
[1726792104181,11.93,2459.0,2458.1,5.73343274]
[1726792104482,1.46,2458.6,2458.4,0.40666]
[1726792104782,3.88429795,2458.5,2458.4,0.40666]
[1726792105080,1.2431,2458.5,2458.4,0.40666]
[1726792105377,3.88427247,2458.5,2458.4,3.61446]
[1726792106274,1.2431,2458.5,2458.4,3.61446]
[1726792106578,1.2431,2458.5,2458.4,4.00956]
[1726792107473,0.4169,2458.5,2458.4,4.00956]
[1726792110771,0.4169,2458.5,2458.4,3.61446]
[1726792112981,0.4169,2458.5,2458.4,5.07446]
[1726792113987,0.4169,2458.5,2458.4,3.61446]
[1726792114377,0.8063,2458.5,2458.4,3.61446]
[1726792120384,0.8063,2458.5,2458.4,3.2078]
[1726792120586,0.8063,2458.5,2458.4,3.61446]
[1726792123099,6.3343,2458.5,2458.4,3.2078]
[1726792124092,6.74095,2458.5,2458.4,3.2078]
[1726792125391,6.3343,2458.5,2458.4,3.2078]
[1726792125690,6.74095,2458.5,2458.4,3.2078]
[1726792126284,2.2663,2458.5,2458.4,3.2078]
[1726792126878,0.8063,2458.5,2458.4,3.2078]
[1726792127584,1.21295,2458.5,2458.4,3.2078]
[1726792128691,2.67295,2458.5,2458.4,3.2078]
[1726792131593,2.2663,2458.5,2458.4,3.2078]
[1726792131786,0.8063,2458.5,2458.4,3.61446]
[1726792131988,1.21295,2458.5,2458.4,3.2078]
[1726792132289,0.8063,2458.5,2458.4,3.2078]
[1726792132794,2.67295,2458.5,2458.4,3.2078]
[1726792133383,2.67295,2458.5,2458.3,3.2078]
[1726792133585,1.8719,2458.4,2458.0,0.83092]
[1726792133783,1.46,2458.1,2457.9,3.2078]
[1726792133999,1.2513,2458.0,2457.9,3.61454]
[1726792135399,1.2513,2458.0,2457.0,1.06411135]
[1726792135400,18.62288724,2458.0,2457.0,1.06411135]
[1726792135591,18.62288724,2458.0,2456.6,4.46364074]
[1726792135592,0.4069,2457.0,2456.6,4.46364074]
[1726792135896,1.46,2457.0,2456.6,3.8506]
[1726792136085,1.46,2457.0,2456.8,0.40692]
[1726792136392,1.46,2457.2,2456.9,0.40691]
[1726792136598,1.8589,2457.3,2456.8,1.46]
[1726792136790,0.3989,2457.3,2457.0,4.6678]
[1726792137100,0.3989,2457.3,2457.1,0.40687]
[1726792137399,0.3989,2457.3,2457.0,5.07469]
[1726792137591,2.26574,2457.3,2457.0,3.2078]
[1726792137792,0.40692,2456.9,2456.4,0.40699]
[1726792137996,1.46,2456.8,2456.5,0.40697]
[1726792138192,1.46,2456.8,2456.4,0.3844]
[1726792138193,7.1538325,2457.3,2456.4,1.8444]
[1726792138400,1.46,2456.9,2456.6,0.40695]
[1726792138592,1.46,2456.9,2456.7,0.40694]
[1726792138790,0.8063,2457.2,2456.8,1.46]
[1726792139192,0.8063,2457.2,2456.9,0.40691]
[1726792139394,0.8063,2457.2,2456.8,1.86692]
[1726792140096,1.46,2457.1,2456.6,3.2078]
[1726792140501,1.46,2456.9,2456.6,3.2078]
[1726792140999,0.3973,2456.8,2456.6,3.61476]
[1726792141400,0.8063,2457.2,2456.7,1.46]
[1726792141701,0.8063,2457.2,2457.0,0.40689]
[1726792141894,0.8063,2457.2,2456.9,0.4069]
[1726792142089,0.8063,2457.2,2456.8,1.86692]
[1726792142605,0.8063,2457.2,2456.7,2.28704]
[1726792142896,1.46,2457.1,2456.8,0.40692]
[1726792143493,1.46,2457.1,2456.7,1.86694]
[1726792143698,1.46,2457.1,2456.8,0.40692]
[1726792144010,1.8669,2457.0,2456.6,3.2078]
[1726792144299,1.46,2457.0,2456.6,3.2078]
[1726792144502,0.4096,2456.9,2456.6,3.2078]
[1726792144900,0.4096,2456.9,2456.6,3.61476]
[1726792145197,0.4096,2456.9,2456.6,3.2078]
[1726792145588,1.46,2456.7,2456.4,0.40698]
[1726792145793,0.4243,2456.6,2456.4,0.40698]
[1726792145993,0.4243,2456.6,2456.4,0.40699]
[1726792146392,0.4243,2456.6,2456.3,3.6148]
[1726792146596,0.4243,2456.6,2456.4,0.40699]
[1726792148197,5.93818,2456.5,2456.3,3.2078]
[1726792148391,1.46,2456.4,2456.3,3.2078]
[1726792148593,5.5312,2456.4,2455.7,3.2078]
[1726792148797,1.46,2455.8,2455.5,3.2078]
[1726792149002,4.121,2456.3,2455.7,1.46]
[1726792149191,0.40699,2456.4,2456.2,3.2078]
[1726792149397,1.46,2456.4,2456.2,3.2078]
[1726792150204,0.8182,2456.5,2456.2,3.2078]
[1726792150498,0.4108,2456.5,2456.2,3.61482]
[1726792152604,0.4108,2456.5,2456.3,0.407]
[1726792153609,1.46,2456.4,2455.6,4.6678]
[1726792153800,1.46,2456.3,2456.0,3.2078]
[1726792153996,1.46,2456.3,2456.0,3.61486]
[1726792155401,1.8575,2456.4,2456.1,0.40704]
[1726792155805,1.8575,2456.4,2456.0,3.61485]
[1726792156903,1.8575,2456.4,2456.1,0.40704]
[1726792157213,1.8575,2456.4,2456.0,3.61485]
[1726792158298,2.2645,2456.4,2456.0,3.61485]
[1726792158497,1.8575,2456.4,2456.0,3.61485]
[1726792158708,1.8575,2456.4,2456.2,0.40703]
[1726792158923,4.5279,2457.0,2456.6,0.40695]
[1726792159205,0.8084,2457.0,2456.7,1.46]
[1726792159510,0.8084,2457.0,2456.7,1.86694]
[1726792159714,0.8084,2457.0,2456.7,0.40694]
[1726792159905,0.8084,2457.0,2456.7,0.82534]
[1726792160215,0.8084,2457.0,2456.7,0.4184]
[1726792160396,0.8084,2457.0,2456.7,0.82534]
[1726792160602,1.46,2456.9,2456.7,0.82534]
[1726792161214,0.8084,2457.0,2456.8,0.40693]
[1726792161512,0.8084,2457.0,2456.6,3.5925]
[1726792161696,0.8084,2457.0,2456.7,0.40694]
[1726792162404,1.2153,2457.0,2456.6,3.99945]
[1726792162812,0.8084,2457.0,2456.6,3.99945]
[1726792163206,0.8084,2457.0,2456.7,0.40694]
[1726792163711,0.8084,2457.0,2456.6,3.5925]
[1726792164013,0.8084,2457.0,2456.6,3.99945]